Workbook

Sheet Pasiūlymas
A2: PIRKIMO SĄLYGŲ PRIEDAS "PASIŪLYMŲ FORMA"
A4: MEDICININĖS DUJOS
A6: Kam: | B6: Viešoji įstaiga CPO LT
A8: Data: | B8: 2022-11-28
A9: Nr.: | B9: GAS/2022-1
A10: Vieta: | B10: Jonava
A12: Tiekėjo pavadinimas / Ūkio subjektų grupės nariai: | C12: UAB "GASCHEMA"
A13: Tiekėjo kodas (-ai): | C13: 304434538
A14: Tiekėjo adresas (-ai): | C14: Jonalaukio k.1, Jonavos raj. sav. LT-55296
A15: Tiekėjo PVM mokėtojo kodas(-ai): | C15: LT100010600319
A16: Tiekėjo / Ūkio subjektų grupės atsakingo partnerio sąskaitos numeris, banko pavadinimas ir banko kodas (-ai): | C16: LT572140030002837811, Luminor Bank AS Lietuvos skyrius, banko kodas 21400
A17: Asmens atsakingo už pasiūlymą vardas, pavardė: | C17: Sigita Zigmantienė
A18: Asmens atsakingo už pasiūlymą telefono numeris, el. pašto adresas: | C18: Tel. +370-677-77896, El.paštas: s.zigmantiene@gaschema.lt
A19: Tiekėjo / Ūkio subjektų grupės, laimėjimo atveju, pasirašančio sutartį asmens vardas, pavardė, pareigos: | C19: Generalinis direktorius Valdemaras Vareika
A20: Tiekėjo / Ūkio subjektų grupės, laimėjimo atveju, už sutarties vykdymą atsakingo asmens vardas, pavardė, telefono numeris, elektroninio pašto adresas: | C20: Medicininių dujų vadybininkė Sigita Zigmantienė, +370-677-77896, s.zigmantiene@gaschema.lt
A21: (1) Tiekėjo / Ūkio subjektų grupės narių, (2) ūkio subjektų, kurių pajėgumais remiamasi, ir (3) jei pašalinimo pagrindai taikomi visiems subtiekėjams - subtiekėjų, kolegialaus priežiūros organo (Stebėtojų tarybos) ir (ar) kolegialaus valdymo organo (Valdybos) narių sąrašas (jei sudaryta) ir (ar) asmuo, kuriam suteikti VPĮ 46 str. 2 d. 2 p. numatyti įgaliojimai | C21: *** | G21: =IF((SUMPRODUCT(--(C21=""))>0), "Privaloma užpildyti, kai taikomi pašalinimo pagrindai", "") -> 
A23: Tiekėjo patvirtinimai:
A24: 1. Šiuo pasiūlymu pažymime, kad sutinkame su visomi pirkimo sąlygomis, nustatytomis:
A25: 1.1. viešojo pirkimo dokumentuose
A26: 1.2. kituose pirkimo dokumentuose (jų paaiškinimuose, papildymuose).
A27: 2. Patvirtiname, kad informacija ir duomenys, pateikti pasiūlyme, yra teisingi ir apima viską, ko reikia tinkamam sutarties įvykdymui
A28: 3. Patvirtiname, kad jei pasiūlyme nenurodyti kolegialaus priežiūros/valdymo organų nariai, šie organai juridiniuose asmenyse nėra sudaryti (taikoma, kai pirkimo dokumentuose nustatyti pašalinimo pagrindai).
A29: 4. Pasiūlymas galioja iki termino, nustatyto pirkimo dokumentuose.
A30: 5. Tais atvejais, kai pagal galiojančius teisės aktus tiekėjui nereikia mokėti PVM, jis nurodo priežastis, dėl kurių PVM nemoka: | D30: ***
A31: 6. Tiekėjas kainas pateikia, nurodydamas ne daugiau skaičių po kablelio, nei leidžiama pirkimo dokumentuose.
A32: 1. DALIS | B32: MEDICININIS DEGUONIS, O2
A34: Tiekėjo pasiūlymas:
A35: Nr. | B35: Pavadinimas | C35: Maksimalus kiekis | D35: Mato vienetas | E35: Vnt. įkainis be PVM, Eur | F35: Suma be PVM, Eur | G35: Firminis prekės pavadinimas, gamintojas. Vaistinio preparato registracijos numeris (jei taikoma)
A36: 1. | B36: Medicininis deguonis, O2
A37: 1.1. | B37: Medicininis deguonis (50ltr±3ltr) | C37: 400 | D37: balion. | E37: 37.5 | F37: =IF(ISBLANK(E37),"", PRODUCT(C37,E37)) -> 15000 | G37: Deguonis Gaschema 100% suslėgtosios medicininės dujos LT/1/19/4351/008 (50l, 10,7m3, 200 bar)
A38: 1.2. | B38: Aukšto slėgio žarna 1,5 m (balionų pajungimui) | C38: 2 | D38: vnt. | E38: 170 | F38: =IF(ISBLANK(E38),"", PRODUCT(C38,E38)) -> 340 | G38: ***
A39: 1.3. | B39: Medicininis deguonis (10ltr±1ltr) | C39: 70 | D39: balion. | E39: 32.5 | F39: =IF(ISBLANK(E39),"", PRODUCT(C39,E39)) -> 2275 | G39: Deguonis Gaschema 100% suslėgtosios medicininės dujos LT/1/19/4351/006 (10l, 2,14m3, 200 bar)
A40: 1.4. | B40: Medicininis deguonis (3.0ltr±0,5ltr) | C40: 1000 | D40: balion. | E40: 29 | F40: =IF(ISBLANK(E40),"", PRODUCT(C40,E40)) -> 29000 | G40: Deguonis Gaschema 100% suslėgtosios medicininės dujos LT/1/19/4351/013 (3l, 0,64m3, 200 bar su daugiafunkciniu ventiliu MediVital)
E41: Suma be PVM | F41: =IF((SUMPRODUCT(--(F37:F40=""))>0), "", SUM(F37:F40)) -> 46615 | G41: =IF((SUMPRODUCT(--(F37:F40=""))>0), "Neužpildytos visų objektų kainos", "") -> 
E42: PVM suma (taikomas 5 proc. PVM tarifas) | F42: =+(F37+F39+F40)*0.05+F38*0.21 -> 2385.15
E43: Suma su PVM | F43: =IF(ISBLANK(F42), "", SUM(F41:F42)) -> 49000.15
A47: 2. DALIS | B47: ANGLIARŪGŠTĖ, CO2
A49: Tiekėjo pasiūlymas:
A50: Nr. | B50: Pavadinimas | C50: Maksimalus kiekis | D50: Mato vienetas | E50: Vnt. įkainis be PVM, Eur | F50: Suma be PVM, Eur | G50: Firminis prekės pavadinimas, gamintojas
A51: 2. | B51: Angliarūgštė, CO2
A52: 2.1. | B52: Angliarūgštė, CO2 (50ltr±3ltr) | C52: 30 | D52: balion. | E52: 27.2 | F52: =IF(ISBLANK(E52),"", PRODUCT(C52,E52)) -> 816 | G52: Karbodinas (CO2 E290) balionuose, 37 kg (50l)
A53: 2.2. | B53: Angliarūgštė, CO2 (13,4ltr±0,5ltr) | C53: 6 | D53: sifoninis balion. | E53: 14.88 | F53: =IF(ISBLANK(E53),"", PRODUCT(C53,E53)) -> 89.28 | G53: Karbodinas (CO2 E290) balionuose, sifoninis 10 kg (13,4)
A54: 2.3. | B54: Angliarūgštė, CO2 (20ltr±1ltr) | C54: 5 | D54: balion. | E54: 17.52 | F54: =IF(ISBLANK(E54),"", PRODUCT(C54,E54)) -> 87.6 | G54: Anglies dioksidas, CO2 (20l, 14,4kg)
E55: Suma be PVM | F55: =IF((SUMPRODUCT(--(F52:F54=""))>0), "", SUM(F52:F54)) -> 992.88 | G55: =IF((SUMPRODUCT(--(F52:F54=""))>0), "Neužpildytos visų objektų kainos", "") -> 
E56: PVM suma (taikomas 21 proc. PVM tarifas) | F56: =+F55*0.21 -> 208.5048
E57: Suma su PVM | F57: =IF(ISBLANK(F56), "", SUM(F55:F56)) -> 1201.3848
A63: 4. DALIS | B63: AZOTAS (SKYSTAS), N2
A65: Tiekėjo pasiūlymas:
A66: Nr. | B66: Pavadinimas | C66: Maksimalus kiekis | D66: Mato vienetas | E66: Vnt. įkainis be PVM, Eur | F66: Suma be PVM, Eur | G66: Firminis prekės pavadinimas, gamintojas
A67: 4. | B67: Azotas (skystas), N2
A68: 4.1. | B68: Azotas (skystas), N2 | C68: 240 | D68: kg | E68: 2.3 | F68: =IF(ISBLANK(E68),"", PRODUCT(C68,E68)) -> 552 | G68: Skystas azotas diuaro induose
E69: Suma be PVM | F69: =IF(F68="","",SUM(F68:F68)) -> 552 | G69: =IF(F68="","Neužpildytos visos objektų kainos","") -> 
E70: PVM suma (taikomas 21 proc. PVM tarifas) | F70: =+F69*0.21 -> 115.92
E71: Suma su PVM | F71: =IF(ISBLANK(F70), "", SUM(F69:F70)) -> 667.92
A76: 7. DALIS | B76: TECHNINIS AZOTAS (20LTR±1LTR)
A78: Tiekėjo pasiūlymas:
A79: Nr. | B79: Pavadinimas | C79: Maksimalus kiekis | D79: Mato vienetas | E79: Vnt. įkainis be PVM, Eur | F79: Suma be PVM, Eur | G79: Firminis prekės pavadinimas, gamintojas
A80: 7. | B80: Techninis azotas (20ltr±1ltr)
A81: 7.1. | B81: Techninis azotas (20ltr±1ltr) | C81: 5 | D81: balion. | E81: 14.05 | F81: =IF(ISBLANK(E81),"", PRODUCT(C81,E81)) -> 70.25 | G81: Dujinis azotas 4.6 balionuose, 3,9 m3 (20/200)
E82: Suma be PVM | F82: =IF(F81="","",SUM(F81:F81)) -> 70.25 | G82: =IF(F81="","Neužpildytos visos objektų kainos","") -> 
E83: PVM suma (taikomas 21 proc. PVM tarifas) | F83: =+F82*0.21 -> 14.7525
E84: Suma su PVM | F84: =IF(ISBLANK(F83), "", SUM(F82:F83)) -> 85.0025
A88: 8. DALIS | B88: PROPANAS-BUTANAS
A90: Tiekėjo pasiūlymas:
A91: Nr. | B91: Pavadinimas | C91: Maksimalus kiekis | D91: Mato vienetas | E91: Vnt. įkainis be PVM, Eur | F91: Suma be PVM, Eur | G91: Firminis prekės pavadinimas, gamintojas
A92: 8. | B92: Propanas-butanas
A93: 8.1. | B93: Propanas-butanas (41ltr±2ltr) | C93: 3 | D93: balion. | E93: 33.35 | F93: =IF(ISBLANK(E93),"", PRODUCT(C93,E93)) -> 100.05 | G93: Propan-butanas balionuose, 19 kg (46)
A94: 8.2. | B94: Propanas-butanas (11ltr±1ltr). | C94: 4 | D94: balion. | E94: 22.17 | F94: =IF(ISBLANK(E94),"", PRODUCT(C94,E94)) -> 88.68 | G94: Propan-butanas su akcizu balionuose, 11 kg (27)
A95: 8.3. | B95: Propanas-butanas (5ltr±1ltr) | C95: 1 | D95: balion. | E95: 18 | F95: =IF(ISBLANK(E95),"", PRODUCT(C95,E95)) -> 18 | G95: Propan-butanas balionuose, 2 kg (5)
E96: Suma be PVM | F96: =IF((SUMPRODUCT(--(F93:F95=""))>0), "", SUM(F93:F95)) -> 206.73 | G96: =IF((SUMPRODUCT(--(F93:F95=""))>0), "Neužpildytos visų objektų kainos", "") -> 
E97: PVM suma (taikomas 21 proc. PVM tarifas) | F97: =+F96*0.21 -> 43.4133
E98: Suma su PVM | F98: =IF(ISBLANK(F97), "", SUM(F96:F97)) -> 250.1433

Sheet Subtiekėjai ir priedai
A2: Ūkio subjektai (įskaitant kvazisubtiekėjus - fiziniai asmenys, kuriuos ketinama įdarbinti pirkimo laimėjimo atveju), kurių pajėgumais tiekėjas remiasi, kad atitiktų keliamus kvalifikacijos reikalavimus:
A5: Pavadinimas* | C5: Kodas, adresas | F5: Perduodami įsipareigojimai | I5: Perduodamų įsipareigojimų dalis nuo visos pirkimo sutarties (Eur arba %) | K5: Kval. Reikalavimo Nr.
A6: *** | C6: *** | F6: *** | I6: *** | K6: ***
A17: Subtiekėjams / subteikėjams / subrangovams numatomos perduoti veiklos (privaloma nurodyti) ir šių ūkio subjektų pavadinimai (jei žinomi):
A19: Pavadinimas | C19: Kodas, adresas | F19: Perduodama veikla* | I19: Perduodamos veiklos dalis nuo visos pirkimo sutarties (Eur arba %)
A20: *** | C20: *** | F20: *** | I20: ***
A33: Kartu su pasiūlymu pateikiami šie dokumentai:
A35: Nr. | B35: Dokumento pavadinimas | H35: Dokumentas yra konfidencialus? Taip/Ne
A36: 1 | B36: Jungtinės veiklos kopija (jei taikoma) | H36: ***
A37: 2 | B37: Europos bendrasis viešųjų pirkimų dokumentas | H37: 1 PRIEDAS TAIP (Nes yra nurodytas įgalioto asmens namų adresas)
A38: 3 | B38: Subtiekimo sutartis, ketinimų protokolas, preliminarios sutartys ar kiti dokumentai, patvirtinantys, kad laimėjus pirkimą tiekėjui bus prieinami kitų ūkio subjektų ištekliai (jei pasitelkiami kvalifikacijos atitikimui) | H38: ***
A39: 4 | B39: Pasiūlymo atitikimą pirkimo sąlygų techninei specifikacijai pagrindžiantys dokumentai | H39: 9-12 PRIEDAS-NE, 13-17 PRIEDAS-TAIP (vidiniai įmonės dokumentai), 18 PRIEDAS-NE, 19 PRIEDAS-TAIP (vidinis įmonės dokumentas), 20-46 PRIEDAI- NE, 47 PRIEDAS-TAIP (vidinis įmonės dokumentas), 48 PRIEDAS-NE, 49 PRIEDAS- TAIP (pagal patvirtintą vidinę įmonės tvarką valdybos narių pavardės yra konfidenciali informacija), 50 PRIEDAS- NE.
A40: 5 | B40: 2 PRIEDAS Įmonės registracijos pažymėjimas | H40: NE
A41: 6 | B41: 3 PRIEDAS Licencija užsiimti farmacine veikla (GGP pažymėjimas) | H41: NE
A42: 7 | B42: 4 PRIEDAS BreLUX registracijos pažymėjimas | H42: NE
A43: 8 | B43: 5 PRIEDAS Deguonis Gaschema 100% registracijos pažymėjimas | H43: NE
A44: 9 | B44: 6 PRIEDAS Deguonis Gaschema 100% registracijos pažymėjimas (MediVital) | H44: NE
A45: 10 | B45: 7 PRIEDAS Diazoto oksidas Gaschema registracijos pažymėjimas | H45: NE
A46: 11 | B46: 8 PRIEDAS Įgaliojimas | H46: TAIP (Nes yra nurodytas asmens kodas)
A48: Pasiūlyme nurodyta Prekės kaina, išskyrus jos sudedamąsias dalis, subtiekėjai, taip pat kita informacija, kuri teisės aktų nustatyta tvarka turi būti skelbiama arba kitokiu būdu viešai prieinama visuomenei, nėra laikoma konfidencialia informacija. Konfidencialią informaciją sudaro, visų pirma, komercinė (gamybinė) paslaptis ir konfidencialieji pasiūlymų aspektai. Informacija, kurią viešai skelbti įpareigoja Lietuvos Respublikos įstatymai, negali būti tiekėjo nurodoma kaip konfidenciali, todėl, tiekėjui nurodžius tokią informaciją kaip konfidencialią, perkančioji organizacija turi teisę ją skelbti. Jei tiekėjas nenurodo konfidencialios informacijos, laikoma, kad konfidencialios informacijos tiekėjo pasiūlyme nėra. Vadovaujantis Informacijos viešinimo Centrinėje viešųjų pirkimų informacinėje sistemoje tvarkos aprašu, patvirtintu Viešųjų pirkimų tarnybos direktoriaus 2017 m. birželio 19 d. įsakymu Nr. 1S-91 „Dėl Informacijos viešinimo Centrinėje viešųjų pirkimų informacinėje sistemoje tvarkos aprašo patvirtinimo“, perkančioji organizacija laimėjusio dalyvio pasiūlymą, išskyrus informaciją, kurią tiekėjas nurodė kaip konfidencialią, paskelbs CVP IS.
A51: Tiekėjo arba jo įgalioto asmens pareigų pavadinimas: | E51: Medicininių dujų vadybininkė
A53: Pasirašančio asmens vardas ir pavardė: | E53: Sigita Zigmantienė
A100: 8541 2022-11-03 20:40:17
